[Event "VI Sunway Sitges Open 2019"]
[Site "Sitges"]
[Date "2019.12.20"]
[Round "8.45"]
[White "Song, Raymond"]
[Black "Krastev, Alexander"]
[Result "1-0"]
[ECO "B27"]
[WhiteElo "2468"]
[BlackElo "2323"]
[Annotator "ChessBase"]
[PlyCount "67"]
[EventDate "2019.12.13"]
[EventType "swiss"]
[EventCountry "ESP"]
[SourceTitle "playchess.com"]
[Source "ChessBase"]
[SourceQuality "1"]
[TimeControl "40/5400+30:1800+30"]

1. Nf3 {[%emt 0:00:00]} c5 {[%emt 0:01:27]} 2. e4 {[%emt 0:00:00]} g6 {[%emt 0:00:05]} 3. Bc4 {[%emt 0:01:13]} Bg7 {[%emt 0:00:11]} 4. O-O {[%emt 0:00:07]} Nc6 {[%emt 0:20:32]} 5. c3 {[%emt 0:00:08]} e6 {[%emt 0:03:21]} 6. d4 {[%emt 0:00:05]} cxd4 {[%emt 0:00:27]} 7. Nxd4 {[%emt 0:00:05]} a6 {[%emt 0:06:00]} 8. Nxc6 {[%emt 0:00:33]} bxc6 {[%emt 0:00:16]} 9. Qd6 {[%emt 0:01:25]} Qe7 {[%emt 0:03:37]} 10. Qg3 {[%emt 0:11:01]} d5 {[%emt 0:04:13]} 11. exd5 {[%emt 0:00:05]} cxd5 {[%emt 0:00:20]} 12. Bd3 {[%emt 0:00:05]} Nf6 {[%emt 0:04:37]} 13. b3 {[%emt 0:01:56]} Nh5 {[%emt 0:02:41]} 14. Qg4 {[%emt 0:01:54]} f5 {[%emt 0:04:16]} 15. Qd1 {[%emt 0:00:51]} Qc7 {[%emt 0:03:09]} 16. Ba3 {[%emt 0:01:07]} Kf7 {[%emt 0:00:30]} 17. g3 {[%emt 0:07:14]} Bb7 {[%emt 0:08:08]} 18. Nd2 {[%emt 0:01:27]} d4 {[%emt 0:04:33]} 19. Nc4 {[%emt 0:00:33]} Rhd8 {[%emt 0:00:07]} 20. Qe2 {[%emt 0:05:30]} dxc3 {[%emt 0:07:25]} 21. Rae1 {[%emt 0:00:06]} Qc6 {[%emt 0:00:09]} 22. f3 {[%emt 0:00:04]} Rd5 {[%emt 0:00:14]} 23. Rd1 {[%emt 0:08:38]} Rad8 {[%emt 0:11:01]} 24. Be4 {[%emt 0:06:23]} fxe4 {[%emt 0:01:46]} 25. fxe4+ {[%emt 0:00:02]} Kg8 {[%emt 0:00:24]} 26. exd5 {[%emt 0:00:05]} exd5 {[%emt 0:00:37]} 27. Nd6 {[%emt 0:12:53]} Rxd6 {[%emt 0:04:26]} 28. Bxd6 {[%emt 0:00:01]} Qb6+ {[%emt 0:06:56]} 29. Rf2 {[%emt 0:03:47]} Nf6 {[%emt 0:01:47]} 30. Qe6+ {[%emt 0:02:23]} Kh8 {[%emt 0:00:01]} 31. Re1 {[%emt 0:00:11]} c2 {[%emt 0:01:24]} 32. Qe8+ {[%emt 0:00:45]} Nxe8 {[%emt 0:00:05]} 33. Rxe8+ {[%emt 0:00:03]} Bf8 {[%emt 0:00:05]} 34. Be5+ {[%emt 0:00:04]} 1-0

[Event "VI Sunway Sitges Open 2019"]
[Site "Sitges"]
[Date "2019.12.20"]
[Round "8.46"]
[White "Davtyan, David Arm."]
[Black "Vogel, Roven"]
[Result "0-1"]
[ECO "A34"]
[WhiteElo "2327"]
[BlackElo "2457"]
[Annotator "ChessBase"]
[PlyCount "74"]
[EventDate "2019.12.13"]
[EventType "swiss"]
[EventCountry "ESP"]
[SourceTitle "playchess.com"]
[Source "ChessBase"]
[SourceQuality "1"]
[TimeControl "40/5400+30:1800+30"]

1. e4 {[%emt 0:00:57]} g6 {[%emt 0:00:00]} 2. c4 {[%emt 0:00:45]} Bg7 {[%emt 0:00:02]} 3. Nc3 {[%emt 0:00:53]} c5 {[%emt 0:02:13]} 4. Nge2 {[%emt 0:02:21]} Nc6 {[%emt 0:00:38]} 5. d3 {[%emt 0:00:31]} d6 {[%emt 0:06:43]} 6. g3 {[%emt 0:00:57]} h5 {[%emt 0:01:09]} 7. h3 {[%emt 0:04:42]} Nf6 {[%emt 0:07:09]} 8. Bg2 {[%emt 0:01:50]} Bd7 {[%emt 0:00:54]} 9. Be3 {[%emt 0:05:21]} a6 {[%emt 0:00:22]} 10. Rc1 {[%emt 0:09:02]} b5 {[%emt 0:00:55]} 11. O-O {[%emt 0:01:56]} bxc4 {[%emt 0:03:57]} 12. dxc4 {[%emt 0:00:05]} Qc8 {[%emt 0:00:07]} 13. Kh2 {[%emt 0:01:24]} Ne5 {[%emt 0:02:07]} 14. Nd5 {[%emt 0:06:39]} h4 {[%emt 0:05:32]} 15. Nxf6+ {[%emt 0:03:39]} Bxf6 {[%emt 0:00:16]} 16. g4 {[%emt 0:01:50]} g5 {[%emt 0:05:50]} 17. Qd2 {[%emt 0:11:50]} Bxg4 {[%emt 0:02:30]} 18. hxg4 {[%emt 0:00:49]} Nxg4+ {[%emt 0:06:29]} 19. Kg1 {[%emt 0:01:35]} h3 {[%emt 0:00:17]} 20. Bh1 {[%emt 0:00:57]} h2+ {[%emt 0:01:32]} 21. Kg2 {[%emt 0:00:01]} Ne5 {[%emt 0:00:10]} 22. f3 {[%emt 0:01:46]} Qh3+ {[%emt 0:00:23]} 23. Kf2 {[%emt 0:00:01]} g4 {[%emt 0:13:19]} 24. Ng3 {[%emt 0:03:37]} Bh4 {[%emt 0:01:37]} 25. Bf4 {[%emt 0:00:07]} gxf3 {[%emt 0:00:18]} 26. Qd5 {[%emt 0:06:04]} Rd8 {[%emt 0:06:35]} 27. Rcd1 {[%emt 0:05:39]} Ng6 {[%emt 0:02:43]} 28. Qf5 {[%emt 0:09:52]} Qxf5 {[%emt 0:01:49]} 29. exf5 {[%emt 0:00:07]} Nxf4 {[%emt 0:00:05]} 30. Kxf3 {[%emt 0:00:17]} Bxg3 {[%emt 0:00:34]} 31. Kxg3 {[%emt 0:00:23]} Ne2+ {[%emt 0:00:51]} 32. Kg4 {[%emt 0:00:28]} Kd7 {[%emt 0:00:31]} 33. b4 {[%emt 0:01:04]} Rdg8+ {[%emt 0:00:48]} 34. Kf3 {[%emt 0:00:03]} Nc3 {[%emt 0:00:47]} 35. Rde1 {[%emt 0:00:44]} cxb4 {[%emt 0:00:49]} 36. c5 {[%emt 0:00:10]} dxc5 {[%emt 0:00:52]} 37. f6 {[%emt 0:00:07]} exf6 {[%emt 0:00:32]} 0-1

[Event "VI Sunway Sitges Open 2019"]
[Site "Sitges"]
[Date "2019.12.20"]
[Round "8.47"]
[White "Haldorsen, Benjamin"]
[Black "O`Donnell, Conor"]
[Result "1-0"]
[ECO "C60"]
[WhiteElo "2455"]
[BlackElo "2312"]
[Annotator "ChessBase"]
[PlyCount "43"]
[EventDate "2019.12.13"]
[EventType "swiss"]
[EventCountry "ESP"]
[SourceTitle "playchess.com"]
[Source "ChessBase"]
[SourceQuality "1"]
[TimeControl "40/5400+30:1800+30"]

1. e4 {[%emt 0:00:00]} e5 {[%emt 0:00:00]} 2. Nf3 {[%emt 0:00:53]} Nc6 {[%emt 0:00:09]} 3. Bb5 {[%emt 0:01:10]} g6 {[%emt 0:00:20]} 4. d4 {[%emt 0:03:46]} exd4 {[%emt 0:00:12]} 5. c3 {[%emt 0:00:04]} dxc3 {[%emt 0:00:08]} 6. Nxc3 {[%emt 0:00:18]} h6 {[%emt 0:00:29]} 7. Bf4 {[%emt 0:02:30]} Bg7 {[%emt 0:01:24]} 8. Qd2 {[%emt 0:11:21]} a6 {[%emt 0:06:36]} 9. Ba4 {[%emt 0:04:55]} Nge7 {[%emt 0:04:42]} 10. h4 {[%emt 0:08:31]} d6 {[%emt 0:06:01]} 11. O-O-O {[%emt 0:08:46]} Bg4 {[%emt 0:07:15]} 12. Nd5 {[%emt 0:02:05]} Kf8 {[%emt 0:12:20]} 13. Kb1 {[%emt 0:04:14]} Ne5 {[%emt 0:11:47]} 14. Bxe5 {[%emt 0:07:46]} dxe5 {[%emt 0:17:11]} 15. Qb4 {[%emt 0:01:46]} b5 {[%emt 0:03:08]} 16. Nb6 {[%emt 0:05:33]} cxb6 {[%emt 0:00:06]} 17. Rxd8+ {[%emt 0:00:16]} Rxd8 {[%emt 0:00:03]} 18. Rd1 {[%emt 0:01:22]} Rxd1+ {[%emt 0:02:17]} 19. Bxd1 {[%emt 0:00:14]} Bf6 {[%emt 0:01:12]} 20. Nxe5 {[%emt 0:01:24]} Bxd1 {[%emt 0:04:57]} 21. Nd7+ {[%emt 0:00:15]} Kg7 {[%emt 0:00:05]} 22. Nxf6 {[%emt 0:01:08]} 1-0

[Event "VI Sunway Sitges Open 2019"]
[Site "Sitges"]
[Date "2019.12.20"]
[Round "8.48"]
[White "Esplugas Esteve, Vicenc"]
[Black "Zhukenov, Aituar"]
[Result "1/2-1/2"]
[ECO "D10"]
[WhiteElo "2366"]
[BlackElo "2127"]
[Annotator "NA RC"]
[PlyCount "97"]
[EventDate "2019.12.13"]
[EventType "swiss"]
[EventCountry "ESP"]
[SourceTitle "playchess.com"]
[Source "ChessBase"]
[SourceQuality "1"]
[TimeControl "40/5400+30:1800+30"]

1. d4 {[%emt 0:00:00]} d5 {[%emt 0:00:19]} 2. c4 {[%emt 0:00:00]} c6 {[%emt 0:00:10]} 3. Nc3 {[%emt 0:00:00]} dxc4 {[%emt 0:00:39]} 4. e3 {[%emt 0:00:00]} b5 {[%emt 0:00:43]} 5. a4 {[%emt 0:00:00]} b4 {[%emt 0:00:07]} 6. Ne4 {[%emt 0:00:02]} Nf6 {[%emt 0:00:20]} 7. Nxf6+ {[%emt 0:00:05]} exf6 {[%emt 0:00:07]} 8. Bxc4 {[%emt 0:00:04]} Bd6 {[%emt 0:00:16]} 9. Nf3 {[%emt 0:00:10]} O-O {[%emt 0:00:20]} 10. O-O {[%emt 0:00:13]} Nd7 {[%emt 0:00:09]} 11. Qc2 {[%emt 0:10:10]} c5 {[%emt 0:16:45]} 12. Rd1 {[%emt 0:07:13]} Bb7 {[%emt 0:05:07]} 13. b3 {[%emt 0:32:15]} Bxf3 {[%emt 0:19:17]} 14. gxf3 {[%emt 0:00:06]} cxd4 {[%emt 0:00:47]} 15. f4 {[%emt 0:17:52]} Bc5 {[%emt 0:00:55]} 16. Bb2 {[%emt 0:18:39]} Qc8 {[%emt 0:21:32]} 17. Rac1 {[%emt 0:00:00]} dxe3 {[%emt 0:19:17]} 18. Qf5 {[%emt 0:00:00]} exf2+ {[%emt 0:01:29]} 19. Kg2 {[%emt 0:00:00]} Nb6 {[%emt 0:04:33]} 20. Qxc8 {[%emt 0:00:00]} Raxc8 {[%emt 0:01:09]} 21. Ba6 {[%emt 0:00:20]} Be3 {[%emt 0:01:25]} 22. Rxc8 {[%emt 0:01:47]} Nxc8 {[%emt 0:00:01]} 23. Bc1 {[%emt 0:06:21]} Bb6 {[%emt 0:02:54]} 24. Bd2 {[%emt 0:00:56]} Rd8 {[%emt 0:01:18]} 25. Rc1 {[%emt 0:01:02]} Rxd2 {[%emt 0:00:51]} 26. Rxc8+ {[%emt 0:00:35]} Rd8 {[%emt 0:01:06]} 27. Rxd8+ {[%emt 0:00:21]} Bxd8 {[%emt 0:00:00]} 28. Kxf2 {[%emt 0:00:16]} Kf8 {[%emt 0:00:15]} 29. f5 {[%emt 0:01:03]} Ke7 {[%emt 0:00:47]} 30. Kf3 {[%emt 0:00:20]} h5 {[%emt 0:01:32]} 31. h3 {[%emt 0:01:17]} Kd6 {[%emt 0:00:15]} 32. Ke4 {[%emt 0:00:10]} Bb6 {[%emt 0:00:58]} 33. Bc4 {[%emt 0:00:32]} Ke7 {[%emt 0:00:10]} 34. Be2 {[%emt 0:00:29]} g6 {[%emt 0:00:03]} 35. Bc4 {[%emt 0:00:19]} Bc7 {[%emt 0:00:22]} 36. Bd3 {[%emt 0:00:56]} Kf8 {[%emt 0:01:23]} 37. Bc4 {[%emt 0:00:12]} Kg7 {[%emt 0:00:10]} 38. Bd5 {[%emt 0:00:22]} Be5 {[%emt 0:00:07]} 39. Bc4 {[%emt 0:00:15]} Bc7 {[%emt 0:00:32]} 40. Bd5 {[%emt 0:00:00]} g5 {[%emt 0:00:00]} 41. Kf3 {[%emt 0:00:47]} Be5 {[%emt 0:05:55]} 42. Bc4 {[%emt 0:00:17]} Kf8 {[%emt 0:01:41]} 43. Be2 {[%emt 0:00:26]} Kg7 {[%emt 0:02:08]} 44. Bc4 {[%emt 0:00:11]} Bb8 {[%emt 0:02:59]} 45. Bd5 {[%emt 0:00:43]} a5 {[%emt 0:05:29]} 46. Bc4 {[%emt 0:00:12]} Bc7 {[%emt 0:02:07]} 47. Bd5 {[%emt 0:00:07]} g4+ {[%emt 0:00:41]} 48. hxg4 {[%emt 0:00:07]} h4 {[%emt 0:00:09]} 49. Kg2 {[%emt 0:00:14]} 1/2-1/2

[Event "VI Sunway Sitges Open 2019"]
[Site "Sitges"]
[Date "2019.12.20"]
[Round "8.49"]
[White "Martin Barcelo, Carles"]
[Black "Van Kessel, Wessel"]
[Result "0-1"]
[ECO "B40"]
[WhiteElo "2196"]
[BlackElo "2095"]
[Annotator "NA"]
[PlyCount "76"]
[EventDate "2019.12.13"]
[EventType "swiss"]
[EventCountry "ESP"]
[SourceTitle "playchess.com"]
[Source "ChessBase"]
[SourceQuality "1"]
[TimeControl "40/5400+30:1800+30"]

1. e4 {[%emt 0:00:02]} c5 {[%emt 0:00:05]} 2. Nf3 {[%emt 0:00:19]} e6 {[%emt 0:00:03]} 3. b3 {[%emt 0:01:20]} a6 {[%emt 0:00:15]} 4. Bb2 {[%emt 0:03:19]} Nc6 {[%emt 0:00:10]} 5. Bd3 {[%emt 0:05:15]} d6 {[%emt 0:00:51]} 6. O-O {[%emt 0:02:11]} e5 {[%emt 0:02:47]} 7. Re1 {[%emt 0:37:02]} g6 {[%emt 0:01:12]} 8. Bf1 {[%emt 0:08:55]} Bg7 {[%emt 0:01:18]} 9. c3 {[%emt 0:03:12]} Bg4 {[%emt 0:06:06]} 10. h3 {[%emt 0:00:19]} Bxf3 {[%emt 0:00:41]} 11. Qxf3 {[%emt 0:00:01]} Nge7 {[%emt 0:00:22]} 12. d3 {[%emt 0:04:26]} O-O {[%emt 0:00:31]} 13. Nd2 {[%emt 0:00:04]} b5 {[%emt 0:01:19]} 14. Qe2 {[%emt 0:01:47]} Nc8 {[%emt 0:30:40]} 15. g3 {[%emt 0:00:31]} Nb6 {[%emt 0:04:04]} 16. Qd1 {[%emt 0:13:46]} Bh6 {[%emt 0:01:21]} 17. Nf3 {[%emt 0:03:01]} b4 {[%emt 0:00:52]} 18. c4 {[%emt 0:01:02]} a5 {[%emt 0:01:07]} 19. a4 {[%emt 0:00:13]} Nd4 {[%emt 0:11:16]} 20. Bxd4 {[%emt 0:01:11]} cxd4 {[%emt 0:00:24]} 21. Bg2 {[%emt 0:01:08]} Nd7 {[%emt 0:00:38]} 22. Qc2 {[%emt 0:02:40]} Nc5 {[%emt 0:00:43]} 23. Rf1 {[%emt 0:00:18]} Ra7 {[%emt 0:03:40]} 24. Rae1 {[%emt 0:00:51]} f5 {[%emt 0:01:51]} 25. exf5 {[%emt 0:01:03]} gxf5 {[%emt 0:00:14]} 26. Nh4 {[%emt 0:01:23]} Qg5 {[%emt 0:05:01]} 27. Bd5+ {[%emt 0:00:31]} Kh8 {[%emt 0:02:10]} 28. Nf3 {[%emt 0:02:05]} Qh5 {[%emt 0:01:15]} 29. Kg2 {[%emt 0:00:06]} Rg7 {[%emt 0:01:25]} 30. Nh2 {[%emt 0:01:34]} Qg5 {[%emt 0:02:11]} 31. Nf3 {[%emt 0:00:07]} Qf6 {[%emt 0:00:31]} 32. Nh2 {[%emt 0:02:36]} Re7 {[%emt 0:03:43]} 33. Qd1 {[%emt 0:02:47]} Bg7 {[%emt 0:03:19]} 34. f3 {[%emt 0:01:51]} Bh6 {[%emt 0:00:38]} 35. Rh1 {[%emt 0:00:35]} Rg7 {[%emt 0:01:48]} 36. Nf1 {[%emt 0:00:33]} Qh4 {[%emt 0:01:13]} 37. Qc2 {[%emt 0:00:31]} Bf4 {[%emt 0:01:08]} 38. g4 {[%emt 0:00:27]} Qxe1 {[%emt 0:00:29]} 0-1

[Event "VI Sunway Sitges Open 2019"]
[Site "Sitges"]
[Date "2019.12.20"]
[Round "8.50"]
[White "Bianco, Valerio"]
[Black "Kind, Michael"]
[Result "1-0"]
[ECO "E70"]
[WhiteElo "2126"]
[BlackElo "1948"]
[Annotator "NA"]
[PlyCount "63"]
[EventDate "2019.12.13"]
[EventType "swiss"]
[EventCountry "ESP"]
[SourceTitle "playchess.com"]
[Source "ChessBase"]
[SourceQuality "1"]
[TimeControl "40/5400+30:1800+30"]

1. d4 {[%emt 0:03:00]} Nf6 {[%emt 0:00:05]} 2. c4 {[%emt 0:00:08]} g6 {[%emt 0:00:07]} 3. Nc3 {[%emt 0:00:12]} Bg7 {[%emt 0:00:05]} 4. e4 {[%emt 0:00:10]} d6 {[%emt 0:00:06]} 5. Bd3 {[%emt 0:00:32]} O-O {[%emt 0:00:40]} 6. Nge2 {[%emt 0:00:11]} e5 {[%emt 0:01:24]} 7. d5 {[%emt 0:00:22]} Na6 {[%emt 0:04:32]} 8. Ng3 {[%emt 0:04:55]} Nc5 {[%emt 0:07:30]} 9. Bc2 {[%emt 0:00:15]} a5 {[%emt 0:00:41]} 10. O-O {[%emt 0:00:32]} Bd7 {[%emt 0:04:06]} 11. f3 {[%emt 0:12:02]} h6 {[%emt 0:09:42]} 12. Be3 {[%emt 0:01:40]} b6 {[%emt 0:05:51]} 13. a3 {[%emt 0:03:32]} Kh7 {[%emt 0:06:56]} 14. b3 {[%emt 0:14:59]} Ng8 {[%emt 0:10:06]} 15. b4 {[%emt 0:07:08]} Nb7 {[%emt 0:00:15]} 16. Qd2 {[%emt 0:01:26]} f5 {[%emt 0:07:12]} 17. exf5 {[%emt 0:00:41]} gxf5 {[%emt 0:05:53]} 18. Nh5 {[%emt 0:00:54]} Be8 {[%emt 0:04:23]} 19. Nxg7 {[%emt 0:00:34]} Kxg7 {[%emt 0:00:01]} 20. f4 {[%emt 0:01:18]} e4 {[%emt 0:04:34]} 21. Ne2 {[%emt 0:03:14]} Kh7 {[%emt 0:01:59]} 22. Nd4 {[%emt 0:02:09]} Bd7 {[%emt 0:00:06]} 23. g4 {[%emt 0:04:53]} Qf6 {[%emt 0:00:53]} 24. Kh1 {[%emt 0:04:34]} Ne7 {[%emt 0:02:03]} 25. gxf5 {[%emt 0:04:02]} Bxf5 {[%emt 0:01:48]} 26. Nxf5 {[%emt 0:01:45]} Nxf5 {[%emt 0:03:41]} 27. Bxe4 {[%emt 0:00:35]} axb4 {[%emt 0:00:08]} 28. Bd4 {[%emt 0:02:31]} Qf7 {[%emt 0:01:36]} 29. Rg1 {[%emt 0:01:46]} Rg8 {[%emt 0:01:15]} 30. Qc2 {[%emt 0:01:53]} Rxg1+ {[%emt 0:03:26]} 31. Rxg1 {[%emt 0:00:15]} b3 {[%emt 0:00:04]} 32. Bxf5+ {[%emt 0:00:22]} 1-0

[Event "VI Sunway Sitges Open 2019"]
[Site "Sitges"]
[Date "2019.12.20"]
[Round "8.51"]
[White "Rathina Sabapathi A"]
[Black "Roch, Florian"]
[Result "1-0"]
[ECO "A46"]
[WhiteElo "1759"]
[BlackElo "1979"]
[Annotator "NA"]
[PlyCount "129"]
[EventDate "2019.12.13"]
[EventType "swiss"]
[EventCountry "ESP"]
[SourceTitle "playchess.com"]
[Source "ChessBase"]
[SourceQuality "1"]
[TimeControl "40/5400+30:1800+30"]

1. d4 {[%emt 0:07:52]} Nf6 {[%emt 0:00:00]} 2. Nf3 {[%emt 24:02:16]} e6 {[%emt 0:00:49]} 3. Bg5 {[%emt 0:00:00]} c5 {[%emt 0:00:07]} 4. e3 {[%emt 0:00:00]} Qb6 {[%emt 0:00:07]} 5. Nc3 {[%emt 0:00:00]} d5 {[%emt 0:06:35]} 6. Bxf6 {[%emt 0:00:00]} gxf6 7. a3 {[%emt 0:03:51]} Bd7 {[%emt 0:03:53]} 8. Rb1 {[%emt 0:04:13]} Nc6 {[%emt 0:02:33]} 9. dxc5 {[%emt 0:00:00]} Qxc5 10. e4 {[%emt 0:14:13]} d4 {[%emt 0:02:51]} 11. Ne2 {[%emt 0:07:59]} Qa5+ {[%emt 0:03:49]} 12. Qd2 {[%emt 0:00:32]} Qxd2+ {[%emt 0:15:00]} 13. Nxd2 {[%emt 0:00:00]} a5 14. Nf4 {[%emt 0:08:18]} Bd6 {[%emt 0:03:32]} 15. g3 {[%emt 0:00:00]} Ke7 {[%emt 0:09:58]} 16. Bb5 {[%emt 0:00:00]} Rac8 {[%emt 0:13:32]} 17. Ke2 {[%emt 0:00:00]} Rc7 {[%emt 0:05:28]} 18. Rhc1 {[%emt 0:00:00]} Rhc8 {[%emt 0:00:00]} 19. Nd3 {[%emt 0:24:33]} b6 {[%emt 0:05:26]} 20. Nb3 {[%emt 0:00:00]} e5 {[%emt 0:03:08]} 21. c4 {[%emt 0:12:13]} Be6 {[%emt 0:02:00]} 22. Nd2 {[%emt 0:04:15]} f5 {[%emt 0:08:05]} 23. f3 {[%emt 0:01:38]} fxe4 {[%emt 0:03:44]} 24. fxe4 {[%emt 0:00:00]} f5 {[%emt 0:00:44]} 25. Kf3 {[%emt 0:00:00]} Rf8 {[%emt 0:00:16]} 26. Rf1 {[%emt 0:00:00]} Na7 {[%emt 0:01:43]} 27. Ba6 {[%emt 0:02:51]} Bd7 {[%emt 0:02:21]} 28. Ke2 {[%emt 0:00:00]} fxe4 {[%emt 0:01:02]} 29. Nxe4 {[%emt 0:00:00]} Bg4+ {[%emt 0:01:27]} 30. Kd2 {[%emt 0:02:38]} Bf3 {[%emt 0:03:16]} 31. Ng5 {[%emt 0:00:00]} e4 {[%emt 0:02:02]} 32. Nxf3 {[%emt 0:00:00]} exf3 {[%emt 0:00:27]} 33. Rbe1+ {[%emt 0:00:00]} Kd8 {[%emt 0:00:25]} 34. Re4 {[%emt 0:00:00]} Re7 {[%emt 0:01:12]} 35. Rxe7 {[%emt 0:00:00]} Bxe7 {[%emt 0:00:41]} 36. Bb7 {[%emt 0:00:00]} Bg5+ {[%emt 0:00:08]} 37. Kd1 {[%emt 0:00:00]} Kc7 {[%emt 0:01:04]} 38. Rxf3 {[%emt 0:00:00]} Rxf3 {[%emt 0:00:48]} 39. Bxf3 {[%emt 0:00:00]} Nc8 {[%emt 0:00:06]} 40. Kc2 {[%emt 0:00:00]} Kd6 {[%emt 0:00:00]} 41. b4 {[%emt 0:00:00]} axb4 {[%emt 0:01:09]} 42. axb4 {[%emt 0:00:00]} Ne7 {[%emt 0:00:30]} 43. Kb3 {[%emt 0:00:00]} h6 {[%emt 0:00:29]} 44. c5+ {[%emt 0:00:00]} bxc5 {[%emt 0:00:49]} 45. bxc5+ {[%emt 0:00:00]} Kc7 {[%emt 0:00:10]} 46. Kc4 {[%emt 0:00:00]} Bf6 {[%emt 0:01:57]} 47. Nf4 {[%emt 0:00:00]} Kb8 {[%emt 0:01:38]} 48. Be4 {[%emt 0:00:00]} Be5 {[%emt 0:01:55]} 49. Ne2 {[%emt 0:00:00]} Ng8 {[%emt 0:01:22]} 50. Nxd4 {[%emt 0:00:00]} Kc7 {[%emt 0:00:05]} 51. Nb5+ {[%emt 0:00:00]} Kd8 {[%emt 0:00:22]} 52. Kd5 {[%emt 0:00:00]} Bb8 {[%emt 0:00:08]} 53. Ke6 {[%emt 0:00:00]} Ne7 {[%emt 0:02:33]} 54. Nd6 {[%emt 0:00:00]} h5 {[%emt 0:00:00]} 55. Bf3 {[%emt 0:00:00]} h4 {[%emt 0:00:00]} 56. gxh4 {[%emt 0:00:00]} Ng6 {[%emt 0:00:01]} 57. h5 {[%emt 0:00:00]} Nf8+ {[%emt 0:02:25]} 58. Kf7 {[%emt 0:00:00]} Nd7 {[%emt 0:03:21]} 59. h6 {[%emt 0:00:00]} Ne5+ {[%emt 0:00:00]} 60. Kg8 {[%emt 0:02:23]} Nd7 {[%emt 0:03:53]} 61. Kg7 {[%emt 0:00:00]} Nxc5 {[%emt 0:01:13]} 62. h7 {[%emt 0:00:28]} Bxd6 {[%emt 0:02:23]} 63. h8=Q+ {[%emt 0:00:00]} Kc7 {[%emt 0:00:44]} 64. Qa8 {[%emt 0:00:00]} Be5+ {[%emt 0:00:11]} 65. Kf7 {[%emt 0:00:00]} 1-0

[Event "VI Sunway Sitges Open 2019"]
[Site "Sitges"]
[Date "2019.12.20"]
[Round "8.52"]
[White "Lorenzo Martinez, Ruben"]
[Black "Lokare Yash"]
[Result "0-1"]
[ECO "D35"]
[WhiteElo "1785"]
[BlackElo "1353"]
[Annotator "NA"]
[PlyCount "116"]
[EventDate "2019.12.13"]
[EventType "swiss"]
[EventCountry "ESP"]
[SourceTitle "playchess.com"]
[Source "ChessBase"]
[SourceQuality "1"]
[TimeControl "40/5400+30:1800+30"]

1. d4 {[%emt 0:09:21]} Nf6 {[%emt 0:00:00]} 2. c4 {[%emt 0:00:12]} e6 {[%emt 0:02:10]} 3. Nf3 {[%emt 0:01:49]} d5 {[%emt 0:00:00]} 4. cxd5 {[%emt 0:00:35]} exd5 {[%emt 0:00:36]} 5. Bg5 {[%emt 0:01:26]} Be7 {[%emt 0:00:00]} 6. e3 {[%emt 0:00:18]} c6 {[%emt 0:00:00]} 7. Nc3 {[%emt 0:01:09]} Nbd7 {[%emt 0:00:32]} 8. Bd3 {[%emt 0:00:00]} O-O {[%emt 0:00:15]} 9. O-O {[%emt 0:00:32]} h6 {[%emt 0:00:37]} 10. Bh4 {[%emt 0:00:58]} b6 {[%emt 0:04:16]} 11. a3 {[%emt 0:02:36]} c5 {[%emt 0:02:33]} 12. Bb5 {[%emt 0:25:03]} Bb7 {[%emt 0:05:57]} 13. Ne5 {[%emt 0:00:00]} Nxe5 {[%emt 0:19:41]} 14. dxe5 {[%emt 0:00:00]} Ne4 {[%emt 0:00:02]} 15. Bxe7 {[%emt 0:00:00]} Qxe7 {[%emt 0:00:02]} 16. Nxe4 {[%emt 0:00:00]} dxe4 {[%emt 0:00:03]} 17. Qd7 {[%emt 0:00:00]} Qxd7 {[%emt 0:00:49]} 18. Bxd7 {[%emt 0:00:00]} Rfd8 {[%emt 0:00:03]} 19. Rad1 {[%emt 0:00:00]} Ba6 {[%emt 0:07:35]} 20. Rfe1 {[%emt 0:04:43]} Bd3 {[%emt 0:01:59]} 21. e6 {[%emt 0:02:46]} Kf8 {[%emt 0:08:57]} 22. f3 {[%emt 0:22:32]} Ke7 {[%emt 0:06:52]} 23. Bc6 {[%emt 0:00:00]} Rac8 {[%emt 0:00:00]} 24. Bb7 {[%emt 0:01:29]} Rb8 {[%emt 0:00:00]} 25. Bc6 {[%emt 0:00:00]} Kxe6 {[%emt 0:00:00]} 26. fxe4 {[%emt 0:00:00]} Ke5 {[%emt 0:01:21]} 27. Bd5 {[%emt 0:00:00]} f5 {[%emt 0:04:11]} 28. Rxd3 {[%emt 0:00:00]} fxe4 {[%emt 0:00:00]} 29. Bxe4 {[%emt 0:00:00]} Kxe4 {[%emt 0:00:13]} 30. Rdd1 {[%emt 0:02:53]} g5 {[%emt 0:04:33]} 31. Kf2 {[%emt 0:00:00]} h5 {[%emt 0:02:22]} 32. Ke2 {[%emt 0:01:46]} c4 {[%emt 0:02:07]} 33. Rf1 {[%emt 0:02:28]} Rd3 {[%emt 0:02:57]} 34. Rf7 {[%emt 0:05:37]} Rxe3+ {[%emt 0:05:13]} 35. Kf2 {[%emt 0:00:14]} Re8 {[%emt 0:00:17]} 36. Rxa7 {[%emt 0:00:00]} Rf8+ {[%emt 0:00:47]} 37. Kg1 {[%emt 0:01:23]} Rf5 {[%emt 0:02:43]} 38. Rc7 {[%emt 0:00:00]} Rc5 {[%emt 0:01:23]} 39. Rxc5 {[%emt 0:01:58]} bxc5 {[%emt 0:00:02]} 40. a4 {[%emt 0:00:44]} Rb3 {[%emt 0:02:51]} 41. Rd2 {[%emt 0:01:38]} Ke3 {[%emt 0:01:47]} 42. Rc2 {[%emt 0:01:11]} Kd3 {[%emt 0:00:00]} 43. Rf2 {[%emt 0:03:09]} Rb4 {[%emt 0:00:00]} 44. a5 {[%emt 0:11:38]} Ra4 {[%emt 0:05:26]} 45. Rf3+ {[%emt 0:02:46]} Ke4 {[%emt 0:02:33]} 46. b3 {[%emt 0:03:05]} cxb3 {[%emt 0:00:00]} 47. Rxb3 {[%emt 0:00:19]} Rxa5 {[%emt 0:00:00]} 48. Rb8 {[%emt 0:02:53]} c4 {[%emt 0:00:00]} 49. Rc8 {[%emt 0:01:21]} Kd3 {[%emt 0:00:00]} 50. Rd8+ {[%emt 0:00:15]} Kc2 {[%emt 0:00:00]} 51. Kf2 {[%emt 0:00:22]} Re5 {[%emt 0:00:27]} 52. h3 {[%emt 0:01:43]} c3 {[%emt 0:00:00]} 53. g4 {[%emt 0:00:41]} hxg4 {[%emt 0:00:00]} 54. hxg4 {[%emt 0:00:10]} Kc1 {[%emt 0:00:00]} 55. Rb8 {[%emt 0:00:58]} c2 {[%emt 0:00:00]} 56. Rb7 {[%emt 0:00:40]} Re4 {[%emt 0:00:00]} 57. Kf3 {[%emt 0:00:26]} Rf4+ {[%emt 0:00:00]} 58. Kg3 {[%emt 0:00:55]} Rd4 {[%emt 0:00:00]} 0-1